Cogmind - Beta 16 @@@ ROGUE MODE // 2026.01.02 @ 21:54:14 // Winter2019/RPGLIKE Player: Luminiferous Result: Destroyed by Thermal Drone with Thermal Shotgun Performance ------------- Evolutions (6) 3000 Regions Visited (19) 3800 Robots Destroyed (454) 2270 Value Destroyed (17958) 17958 Prototype IDs (44) 880 Alien Tech Used (0) 0 Bonus (7287) 7287 TOTAL SCORE: 35195 Bonus ------- High Alert Combat Kills 877 Follower Combat Kills 362 Destroyed Unchained 1000 Awakened Behemoth Slayer 1000 Registered with UFD 300 Met Optimus in HQ 500 Met Imprinter 300 Met Warlord at Base 500 MAIN.C Attacked Warlord 500 Warlord Defense Kills 2168 Friendly Fire -220 Cogmind --------- Core Integrity 0/1000 Matter 257/300 Energy 246/270 System Corruption 8% Temperature Cool (28) Movement Hovering (35) Location -4/Factory Parts ------- > --- POWER (3) -------- Light Fission Core Light Fission Core Micro Fission Core > --- PROPULSION (6) --- Improved Gravmag System Cooled Gravmag System Improved Antigrav System Improved Antigrav System Improved Linear Gravjet Experimental Antigrav System > --- UTILITY (11) ----- Structural Scanner Advanced Sensor Array Experimental Signal Interpreter Nanoactuators Improved Actuator Array Force Booster Improved Transmission Jammer Improved Reaction Control System Phase Shifter Powered Armor Graphene Brace > --- WEAPON (4) ------- Force Lance Enhanced Force Lance Enhanced Force Lance CR-A16's Behemoth Slayer > --- INVENTORY (4) ---- Improved Gravmag System Powered Armor Mini Grenade Launcher Peak State ------------ > --- POWER ------------ Light Fission Core Light Fission Core Micro Fission Core > --- PROPULSION ------- Improved Gravmag System Improved Gravmag System Improved Gravmag System Improved Gravmag System Cooled Gravmag System Experimental Antigrav System > --- UTILITY ---------- Structural Scanner Experimental Signal Interpreter Wardrone Bay > --- WEAPON ----------- Lance Enhanced Force Lance Enhanced Force Lance CR-A16's Behemoth Slayer > --- INVENTORY -------- Protomatter Protomatter Protomatter Mini Grenade Launcher [Rating: 197] Favorites ----------- Power Light Fission Core Engine Ion Engine Power Core Light Fission Core Propulsion Improved Gravmag System Treads Light Treads Leg Aluminum Leg Hover Unit Improved Gravmag System Flight Unit Improved VTOL Module Utility Structural Scanner Device Structural Scanner Processor Experimental Signal Interpreter Protection Powered Armor Weapon Enhanced Force Lance Energy Gun Medium Laser Energy Cannon Long-range Proton Cannon Ballistic Gun Assault Rifle Ballistic Cannon Mini Assault Cannon Launcher Mini Grenade Launcher Special Weapon Molecular Deconstructor Impact Weapon Heavy Mace Slashing Weapon Power Sword Piercing Weapon Enhanced Force Lance Build | -11 -10 -10 -9 -9 -9 -9 -6 -6 -6 -6 -6 -6 -5 -5 -5 -5 -5 -4 -4 ------- Run | Yrd Mat Min Mat Sto Rec Scr Fac Was Fac Low Low Zio Pro Fac Upp Upp War Pro Fac Slots Evolved 20 | 3 . 1 1 . 1 2 6 . 3 . . . 1 1 . . . 1 . Power 2 | . . . . . . . 1 . . . . . . 1 . . . . . Propulsion 5 | 1 . . . . . 1 1 . 1 . . . 1 . . . . . . Utility 10 | 1 . 1 1 . 1 1 2 . 2 . . . . . . . . 1 . Weapon 3 | 1 . . . . . . 2 . . . . . . . . . . . . Parts Attached 153 | 6 1 7 7 8 2 5 40 1 22 . 2 2 3 22 2 5 5 1 12 Power 13 | 1 . 1 1 1 . . 6 . . . . . . 3 . . . . . Engine 5 | 1 . . 1 1 . . 1 . . . . . . 1 . . . . . Core 8 | . . 1 . . . . 5 . . . . . . 2 . . . . . Reactor . | . . . . . . . . . . . . . . . . . . . . Propulsion 30 | 2 . . . . . 1 11 . 4 . . . 2 3 2 1 . . 4 Treads 1 | . . . . . . . . . 1 . . . . . . . . . . Leg 7 | 2 . . . . . 1 1 . . . . . . . 2 1 . . . Wheel . | . . . . . . . . . . . . . . . . . . . . Hover 21 | . . . . . . . 9 . 3 . . . 2 3 . . . . 4 Flight 1 | . . . . . . . 1 . . . . . . . . . . . . Utility 62 | 1 1 2 1 3 2 2 13 1 14 . 2 . . 11 . 1 3 1 4 Device 38 | 1 . . 1 . 1 1 7 1 11 . 1 . . 8 . . 2 1 3 Storage . | . . . . . . . . . . . . . . . . . . . . Processor 8 | . 1 . . . . 1 1 . 2 . 1 . . 1 . 1 . . . Hackware . | . . . . . . . . . . . . . . . . . . . . Protection 16 | . . 2 . 3 1 . 5 . 1 . . . . 2 . . 1 . 1 Artifact . | . . . . . . . . . . . . . . . . . . . . Weapon 48 | 2 . 4 5 4 . 2 10 . 4 . . 2 1 5 . 3 2 . 4 Energy Gun 6 | 1 . 2 . 2 . . . . . . . . . . . . 1 . . Energy Cannon 2 | . . . . 1 . . . . . . . . . 1 . . . . . Ballistic Gun 6 | 1 . 1 2 . . 1 . . . . . . . . . 1 . . . Ballistic Cannon 3 | . . . . 1 . . 1 . . . . . . . . 1 . . . Launcher 10 | . . 1 1 . . . . . 2 . . 1 . 2 . . 1 . 2 Special Weapon 1 | . . . . . . . . . . . . . 1 . . . . . . Impact Weapon 4 | . . . 2 . . . 1 . . . . . . . . . . . 1 Slashing Weapon 3 | . . . . . . . 2 . . . . . . . . 1 . . . Piercing Weapon 13 | . . . . . . 1 6 . 2 . . 1 . 2 . . . . 1 Special Melee Weapon . | . . . . . . . . . . . . . . . . . . . . Unidentified Prototypes 27 | . . . 2 5 . . 4 . 3 . . 1 1 5 . . 3 . 3 Parts Lost 7 | . . . 1 1 . . 3 . 1 . . . . . . . . . 1 Power . | . . . . . . . . . . . . . . . . . . . . Propulsion . | . . . . . . . . . . . . . . . . . . . . Utility 7 | . . . 1 1 . . 3 . 1 . . . . . . . . . 1 Weapon . | . . . . . . . . . . . . . . . . . . . . Highest Loss Streak 1 | . . . 1 1 . . 1 . 1 . . . . . . . . . 1 To Critical Strikes . | . . . . . . . . . . . . . . . . . . . . Average Backups 1 | . . 1 1 1 1 1 1 3 2 3 2 3 2 1 1 1 1 1 1 Power . | . . . . . . . . . . . . . . . . . . . . Propulsion . | . . . . . . . . . . 1 . 1 . . . . . . . Utility . | . . . . . . . . 2 1 1 1 1 1 . . . . . . Weapon . | . . 1 1 1 1 1 . 1 1 1 1 1 1 1 1 1 1 1 1 Tool/Special . | . . . . . . . . . . . . . . . . . . . . Unused Backups 11 | . 1 . 2 . . . 3 . 3 . . . . 1 . . . . 1 Power 2 | . . . 2 . . . . . . . . . . . . . . . . Propulsion 2 | . . . . . . . 1 . 1 . . . . . . . . . . Utility 5 | . 1 . . . . . . . 2 . . . . 1 . . . . 1 Weapon 2 | . . . . . . . 2 . . . . . . . . . . . . Tool/Special . | . . . . . . . . . . . . . . . . . . . . Average Slot Usage (%) 98 | . 96 100 95 93 100 99 97 100 98 100 100 100 99 98 100 99 99 100 99 Core 9 | . . 10 10 10 10 8 9 11 9 9 9 9 9 9 13 13 13 12 11 Leg 10 | . 27 25 23 22 21 20 10 . . . . . . . . . . . . Hover 12 | . . . . . . . 11 22 24 23 23 23 26 26 26 25 26 25 24 Device 30 | . 14 12 17 22 23 33 32 33 32 38 37 38 36 34 34 34 33 36 37 Processor 7 | . 11 12 11 11 10 8 6 5 4 4 4 4 4 4 4 4 4 4 4 Protection 5 | . . 11 7 6 10 8 5 5 4 4 4 4 4 3 4 4 3 4 3 Energy Gun 1 | . 14 19 1 . . . . . . . . . . . . . . . . Impact Weapon 6 | . . . 14 20 21 11 3 . . . . . . . . . . . . Piercing Weapon 10 | . . . . . . 6 8 22 20 18 18 19 17 17 17 16 15 15 15 Peak Build Rating 197 | 6 7 16 19 18 19 33 85 84 111 111 111 111 122 139 137 137 197 141 149 Average Rating 69 | 3 6 12 15 16 18 25 60 83 97 110 110 110 114 123 136 136 134 140 143 On Entrance 76 | . 6 7 16 16 17 19 33 81 84 111 111 111 111 115 137 137 137 133 141 Avg Prop Armor Cover (%) 1 | . . . . . . . . . . . . . . 1 . . 1 . . Naked Turns . | . . . . . . . . . . . . . . . . . . . . Heaviest Build 76 | 10 10 20 21 16 21 22 46 42 58 58 58 59 59 66 64 64 64 69 76 Greatest Support 82 | 20 20 20 20 20 20 30 49 49 60 60 60 60 71 78 78 78 78 78 82 Greatest Overweight (x) 1 | 1 . . 1 . 1 1 1 . 1 . 1 . . . 1 . . . 1 Average Overweight (x) . | . . . . . . . . . . . . . . . . . . . . Largest Inventory Capacity 4 | . 3 3 3 3 3 3 3 3 3 3 3 3 3 3 4 4 4 4 4 Average Capacity 3 | . 2 3 3 3 3 3 3 3 3 3 3 3 3 3 3 4 4 4 4 Most Carried 4 | . 2 3 3 3 3 3 3 3 3 3 3 3 3 3 4 4 4 4 4 Average Carried 2 | . . 1 1 1 2 2 2 3 2 3 2 3 2 1 2 3 3 3 2 Final Capacity 4 | . 3 3 3 3 3 3 3 3 3 3 3 3 3 3 4 4 4 4 4 Final Carried 4 | . 1 2 1 1 3 3 3 3 3 3 3 3 2 1 4 4 4 4 3 Class Distribution -------------------- 24% | Machinist-Ninja 18% | Gladiator 16% | Scientist-Ninja 15% | Infiltrator-Gladiator 11% | Mutant 7% | Infiltrator-Ninja Dominant Class ---------------- Mutant | -10/Materials Mutant | -10/Mines Gladiator | -9/Materials Gladiator | -9/Storage Gladiator | -9/Recycling Infiltrator-Gladiator | -9/Scraptown Infiltrator-Gladiator | -6/Factory Infiltrator-Ninja | -6/Waste Scientist-Ninja | -6/Factory Scientist-Ninja | -6/Lower Caves Scientist-Ninja | -6/Lower Caves Scientist-Ninja | -6/Zion Machinist-Ninja | -5/Proximity Caves Machinist-Ninja | -5/Factory Machinist-Ninja | -5/Upper Caves Machinist-Ninja | -5/Upper Caves Machinist-Ninja | -5/Warlord Machinist-Ninja | -4/Proximity Caves Machinist-Ninja | -4/Factory Resources | -11 -10 -10 -9 -9 -9 -9 -6 -6 -6 -6 -6 -6 -5 -5 -5 -5 -5 -4 -4 ----------- Run | Yrd Mat Min Mat Sto Rec Scr Fac Was Fac Low Low Zio Pro Fac Upp Upp War Pro Fac Matter Collected 5638 | 267 243 187 287 233 84 63 914 . 884 127 188 40 110 527 72 241 590 90 491 Remotely . | . . . . . . . . . . . . . . . . . . . . Salvage Created 19936 | 39 478 84 1049 909 2098 . 2322 . 1870 402 1300 . 760 2474 1362 808 469 1144 2368 Parts 898 | 9 39 14 56 23 26 . 110 . 100 23 55 . 25 142 59 31 33 55 98 Haulers Intercepted 27 | . 1 . 5 3 3 . 6 . 1 . 1 . . 4 . . . . 3 Recyclers Shooed 6 | 1 1 . . . . . 3 . . . . . . . . . . . 1 Parts Field Recycled . | . . . . . . . . . . . . . . . . . . . . Retrieved Matter . | . . . . . . . . . . . . . . . . . . . . Parts Self-Destructed 221 | . . . . . . . . . . 15 51 . 20 . 58 24 . 53 . Prevented 5 | . . . . . . . . . . 1 . . . . . 4 . . . Parts Restored . | . . . . . . . . . . . . . . . . . . . . Kills | -11 -10 -10 -9 -9 -9 -9 -6 -6 -6 -6 -6 -6 -5 -5 -5 -5 -5 -4 -4 ------- Run | Yrd Mat Min Mat Sto Rec Scr Fac Was Fac Low Low Zio Pro Fac Upp Upp War Pro Fac Combat Hostiles Destroyed 354 | . 16 7 20 18 15 . 41 . 31 11 27 . 10 35 25 15 19 21 43 Melee 213 | . . . 2 5 6 . 19 . 28 8 23 . 6 34 25 11 1 14 31 Guns 28 | . 16 4 8 . . . . . . . . . . . . . . . . AOE 81 | . . 3 4 3 . . 17 . 3 3 4 . 4 . . 4 18 6 12 Classes Destroyed 23 | 1 5 . 5 . 3 . 2 . . . . . 2 1 . 1 2 1 . Worker 6 | . . . 2 3 . . . . . . . . . . . . . . 1 Builder 13 | . . . 1 1 9 . 2 . . . . . . . . . . . . Tunneler 2 | 2 . . . . . . . . . . . . . . . . . . . Hauler 27 | . 1 . 5 3 3 . 6 . 1 . 1 . . 4 . . . . 3 Recycler 19 | . . . 1 1 8 . 4 . 1 . . . . 1 . . . . 3 Minesweeper 1 | . . . . . . . . . . . . . . . . . . 1 . Operator 11 | . 1 . . . . . 4 . 1 . . . . 4 . . . . 1 Drone 14 | . . . . . . . . . . . . . 2 . . . . . 12 Watcher 19 | . 1 . 3 . . . 5 . 2 . . . . 4 . . . . 4 Swarmer 80 | . 9 5 4 3 . . 11 . 4 3 9 . 4 1 3 4 . 6 14 Saboteur 3 | . . . . . . . . . . . . . . . . . 3 . . Grunt 131 | . 7 2 8 7 2 . 14 . 14 4 14 . . 13 18 5 7 10 6 Brawler 8 | . . . 1 . . . 1 . 2 . . . . . . . 4 . . Duelist 5 | . . . . . . . 1 . . . . . . . 2 . 1 1 . Protector 5 | . . . . . 3 . . . . . . . . . . . 2 . . Sentry 47 | . . . 8 8 6 . 4 . 6 . 2 . . 5 2 1 . 1 4 Demolisher 1 | . . . . . 1 . . . . . . . . . . . . . . Specialist 1 | . . . . . . . . . . . . . 1 . . . . . . Hunter 17 | . . . . . 3 . 3 . . . 2 . 2 2 . 3 . 2 . Programmer 33 | . . . . . . . 7 . 5 . . . 1 12 . 1 . . 7 Behemoth 2 | . . . . . . . . . . . . . . 1 . . . 1 . Executioner 2 | . . . . . . . . . . . . . . . . . 2 . . Wasp 3 | . . . . . . . . . . 3 . . . . . . . . . Thug 2 | . . . 1 . . . . . . 1 . . . . . . . . . Mutant 1 | . . . . . . . . . . . . . . . . 1 . . . Best Kill Streak 15 | 2 3 3 5 4 11 . 12 . 4 10 6 . 5 5 9 5 15 5 10 Combat Bots Only 15 | . 3 3 4 3 2 . 11 . 4 10 6 . 5 4 9 5 15 5 8 Max Kills in Single Turn 4 | 1 2 3 4 3 1 . 3 . 1 1 2 . 3 1 1 3 3 2 2 Gunslinging 1 | . 1 1 . . . . . . . . . . . . . . . . . Exploded 4 | . . 3 4 3 . . 3 . 1 1 2 . 3 . . 3 3 2 2 Melee 2 | . . . 1 1 1 . 1 . 1 1 1 . 1 1 1 2 1 1 2 Uniques/NPCs Destroyed 1 | . . . . . . . . . . . . . . 1 . . . . . 6S-H0T (-5/Factory) Combat | -11 -10 -10 -9 -9 -9 -9 -6 -6 -6 -6 -6 -6 -5 -5 -5 -5 -5 -4 -4 -------- Run | Yrd Mat Min Mat Sto Rec Scr Fac Was Fac Low Low Zio Pro Fac Upp Upp War Pro Fac Hostile Shots Fired 1661 | . 106 33 110 93 32 . 322 . 137 41 85 . 35 166 41 54 68 81 257 Missed 707 | . 33 7 31 31 13 . 124 . 70 20 45 . 20 67 20 33 35 47 111 Hits 954 | . 73 26 79 62 19 . 198 . 67 21 40 . 15 99 21 21 33 34 146 Melee 11 | . . . 3 . . . 5 . 2 . . . . . 1 . . . . Projectile 943 | . 73 26 76 62 19 . 193 . 65 21 40 . 15 99 20 21 33 34 146 AOE 4 | . . . . . . . . . . . . . . 3 . . . . 1 Critical Strikes 77 | . . . 3 4 1 . 7 . . . 2 . . 13 2 2 2 6 35 Actively Blocked 62 | . . . . . . . . . . . 2 . . 13 2 2 2 6 35 Part Disruptions 4 | . . . . . . . 1 . . . . . . . . . 2 . 1 Damage Taken 16592 | . 683 347 1312 938 297 . 3219 . 1109 664 643 . 261 2243 433 354 720 565 2804 Core 11551 | . 552 250 873 686 204 . 2309 . 717 458 431 . 188 1510 314 206 536 353 1964 Absorbed by Shields . | . . . . . . . . . . . . . . . . . . . . Redirected to Core 9474 | . 408 200 784 494 131 . 1927 . 595 412 389 . 148 1286 265 206 422 301 1506 Regen/Repaired (Parts) 165 | . . . 31 . . . . . 56 . . . . 78 . . . . . Core Remaining (%) 98 | 100 . 99 . . . 100 . . . . . . 91 . . . . 100 . Volleys Fired 226 | 3 76 15 27 3 . . 20 . 7 4 5 . 2 . . 6 41 3 14 Largest 2 | 2 2 2 2 1 . . 1 . 1 1 1 . 1 . . 1 1 1 1 Hottest 115 | 70 70 115 88 40 . . 30 . 43 30 30 . 30 . . 30 30 30 30 Shots Fired 343 | 6 152 29 50 3 . . 20 . 8 4 5 . 2 . . 6 41 3 14 Gun 233 | 6 152 28 47 . . . . . . . . . . . . . . . . Cannon 1 | . . . . 1 . . . . . . . . . . . . . . . Launcher 109 | . . 1 3 2 . . 20 . 8 4 5 . 2 . . 6 41 3 14 Special . | . . . . . . . . . . . . . . . . . . . . Kinetic 133 | 3 76 12 41 1 . . . . . . . . . . . . . . . Thermal 101 | 3 76 16 6 . . . . . . . . . . . . . . . . Explosive 108 | . . 1 3 2 . . 20 . 7 4 5 . 2 . . 6 41 3 14 Electromagnetic 1 | . . . . . . . . . 1 . . . . . . . . . . Robot Hit Streak 12 | 1 5 6 10 1 . . 6 . . 3 5 . 6 . . 7 12 . 1 Robot Miss Streak 5 | 3 5 5 3 . . . 3 . . . . . . . . . 1 . 2 Penetration Max . | . . . . . . . . . . . . . . . . . . . . Secondary Targets 3 | . 2 1 . . . . . . . . . . . . . . . . . Max Gunslinging Chain 1 | . 1 1 . . . . . . . . . . . . . . . . . Shots Hit Robots 987 | 2 68 18 67 54 82 . 146 . 93 17 67 . 19 124 61 26 12 42 89 Core Hits 555 | 2 31 11 25 7 10 . 86 . 42 14 36 . 18 54 35 19 77 27 61 Critical Kills 4 | . 1 . 1 . 2 . . . . . . . . . . . . . . Critical Parts Destroyed 34 | . . . 4 8 14 . 8 . . . . . . . . . . . . Critical Strikes 130 | . 4 1 7 8 17 . 15 . 8 1 6 . 2 22 15 3 . 5 16 Burn 5 | . 3 1 1 . . . . . . . . . . . . . . . . Destroy 2 | . 1 . 1 . . . . . . . . . . . . . . . . Smash 38 | . . . 5 8 17 . 8 . . . . . . . . . . . . Sever 1 | . . . . . . . 1 . . . . . . . . . . . . Impale 84 | . . . . . . . 6 . 8 1 6 . 2 22 15 3 . 5 16 Melee Attacks 1325 | . . . 43 78 103 . 265 . 160 19 83 . 31 210 78 37 2 57 159 Impact 287 | . . . 43 78 103 . 63 . . . . . . . . . . . . Slashing 55 | . . . . . . . 55 . . . . . . . . . . . . Piercing 983 | . . . . . . . 147 . 160 19 83 . 31 210 78 37 2 57 159 Sneak Attacks 143 | . . . 6 8 41 . 22 . 12 1 9 . 2 16 12 . . 1 13 Combat Hostiles 28 | . . . . . . . 2 . 9 1 3 . 2 8 1 . . . 2 Follow-up Attacks 262 | . . . 3 7 8 . 46 . 36 6 24 . 5 40 19 13 . 17 38 Damage Inflicted 57033 | 49 853 365 2591 2939 5846 . 7703 . 4945 1042 3916 . 1818 6562 3154 1604 3228 3143 7275 Guns 1635 | 49 853 240 493 . . . . . . . . . . . . . . . . Cannons . | . . . . . . . . . . . . . . . . . . . . Explosions 9634 | . . 125 538 280 . . 2029 . 259 236 304 . 319 . . 272 3183 441 1648 Melee 45764 | . . . 1560 2659 5846 . 5674 . 4686 806 3612 . 1499 6562 3154 1332 45 2702 5627 Ramming . | . . . . . . . . . . . . . . . . . . . . Kinetic 1001 | 24 417 133 427 . . . . . . . . . . . . . . . . Thermal 634 | 25 436 107 66 . . . . . . . . . . . . . . . . Explosive 9634 | . . 125 538 280 . . 2029 . 259 236 304 . 319 . . 272 3183 441 1648 Electromagnetic . | . . . . . . . . . . . . . . . . . . . . Impact 11853 | . . . 1560 2659 5846 . 1788 . . . . . . . . . . . . Slashing 830 | . . . . . . . 830 . . . . . . . . . . . . Piercing 33081 | . . . . . . . 3056 . 4686 806 3612 . 1499 6562 3154 1332 45 2702 5627 Highest Corruption 11 | . 1 1 . 3 3 . 5 10 11 11 11 11 . 7 7 7 7 . 8 Average Corruption 5 | . 1 1 . 2 3 . 3 8 10 11 11 11 . 4 7 7 7 . 4 Corruption Purged . | . . . . . . . . . . . . . . . . . . . . Corruption Blocked 3 | . . . . . . . 3 . . . . . . . . . . . . Effects 358 | . 5 1 . 15 32 . 52 3 97 24 29 3 . 38 21 19 . . 19 Message Errors 86 | . 1 . . 3 7 . 9 . 28 8 9 . . 14 4 1 . . 2 Matter Fused 91 | . 1 . . 4 11 . 15 . 24 6 11 . . 1 3 7 . . 8 Heat Flow Errors 49 | . 1 . . 4 3 . 8 . 13 . 2 2 . 6 4 2 . . 4 Energy Discharges 51 | . 1 1 . . 7 . 8 . 12 4 1 . . 11 1 4 . . 1 Parts Rejected 5 | . . . . . . . . . 1 1 1 . . . 1 1 . . . Parts Fused 1 | . . . . 1 . . . . . . . . . . . . . . . Data Loss (minor) 41 | . . . . 3 2 . 8 . 7 4 2 1 . 4 5 3 . . 2 Data Loss (major) 20 | . . . . . 1 . 3 1 7 1 1 . . 2 2 1 . . 1 Misfires 1 | . . . . . . . . . 1 . . . . . . . . . . Alerts 8 | . 1 . . . 1 . 1 1 2 . . . . . 1 . . . 1 Misdirections 5 | . . . . . . . . 1 2 . 2 . . . . . . . . Overload Shots . | . . . . . . . . . . . . . . . . . . . . Overflow Damage 10205 | . . . 445 1217 3029 . 1088 . 665 104 683 . 179 943 93 138 . 396 1225 Projectiles . | . . . . . . . . . . . . . . . . . . . . Explosions 332 | . . . 19 14 . . 105 . . . 14 . . . . . . 45 135 Melee 9873 | . . . 426 1203 3029 . 983 . 665 104 669 . 179 943 93 138 . 351 1090 Knockbacks 33 | . . . . 6 19 . 8 . . . . . . . . . . . . Impact 33 | . . . . 6 19 . 8 . . . . . . . . . . . . Kinetic . | . . . . . . . . . . . . . . . . . . . . Secondary . | . . . . . . . . . . . . . . . . . . . . Self-Inflicted Damage 358 | . . . 119 68 . . 68 . 71 . . . . . . 13 19 . . Shots 11 | . . . 2 2 . . 3 . 2 . . . . . . 1 1 . . Rammed . | . . . . . . . . . . . . . . . . . . . . Targets Rammed . | . . . . . . . . . . . . . . . . . . . . Kicked . | . . . . . . . . . . . . . . . . . . . . Crushed . | . . . . . . . . . . . . . . . . . . . . Highest Temperature 406 | 18 253 222 114 176 201 . 318 . 268 113 269 362 44 406 284 231 348 7 287 Average Temperature 95 | 9 57 97 41 65 91 . 115 . 80 51 95 156 9 127 94 102 90 5 59 Received Heat Transfer 3621 | . 198 171 441 351 99 . 765 . 225 102 180 . . 180 153 18 138 93 507 Effects 21 | . . . . . . . . . . . . 1 . 15 . . 2 . 3 Shutdowns 7 | . . . . . . . . . . . . 1 . 5 . . 1 . . Energy Bleed 2 | . . . . . . . . . . . . . . 1 . . 1 . . Interference 9 | . . . . . . . . . . . . . . 6 . . . . 3 Matter Decay 1 | . . . . . . . . . . . . . . 1 . . . . . Short Circuit 1 | . . . . . . . . . . . . . . 1 . . . . . Damage (minor) 1 | . . . . . . . . . . . . . . 1 . . . . . Siege Activations . | . . . . . . . . . . . . . . . . . . . . Martial Activations . | . . . . . . . . . . . . . . . . . . . . Shielding Activations . | . . . . . . . . . . . . . . . . . . . . Robots Disrupted . | . . . . . . . . . . . . . . . . . . . . Combat Hostiles . | . . . . . . . . . . . . . . . . . . . . Robots Corrupted 62 | . . . 9 18 27 . 8 . . . . . . . . . . . . Combat Hostiles 31 | . . . 6 10 10 . 5 . . . . . . . . . . . . Parts Fried 94 | . . . 14 24 42 . 14 . . . . . . . . . . . . Impact Corruptions 195 | . . . 19 49 98 . 29 . . . . . . . . . . . . Robots Melted . | . . . . . . . . . . . . . . . . . . . . Combat Hostiles . | . . . . . . . . . . . . . . . . . . . . Parts Melted 7 | 1 2 2 1 . . . . . . . . . . . . . 1 . . Heat Transferred 2183 | 74 1517 370 222 . . . . . . . . . . . . . . . . Parts Sabotaged . | . . . . . . . . . . . . . . . . . . . . Parts Stolen . | . . . . . . . . . . . . . . . . . . . . Parts Stripped . | . . . . . . . . . . . . . . . . . . . . Power Chain Reactions . | . . . . . . . . . . . . . . . . . . . . Alert | -11 -10 -10 -9 -9 -9 -9 -6 -6 -6 -6 -6 -6 -5 -5 -5 -5 -5 -4 -4 ------- Run | Yrd Mat Min Mat Sto Rec Scr Fac Was Fac Low Low Zio Pro Fac Upp Upp War Pro Fac Maximum Alert Level 4 | . . . 1 1 1 . 4 2 3 . . . . 2 . . . . 2 Low Security (%) 53 | 100 100 100 84 78 87 . 44 . 5 . . . . 18 . . . . 32 Level 1 28 | . . . 15 21 12 . 20 20 42 . . . . 61 . . . . 60 Level 2 13 | . . . . . . . 13 80 47 . . . . 19 . . . . 6 Level 3 4 | . . . . . . . 16 . 4 . . . . . . . . . . Level 4 1 | . . . . . . . 6 . . . . . . . . . . . . Level 5 . | . . . . . . . . . . . . . . . . . . . . High Security . | . . . . . . . . . . . . . . . . . . . . Max Security . | . . . . . . . . . . . . . . . . . . . . Peak Influence 1178 | 10 187 128 259 230 219 . 1178 411 857 . . . . 505 . . . . 437 Initial 411 | . . 35 22 90 69 . . 411 273 . . . . 159 . . . . 112 Average 248 | 1 84 48 145 148 98 . 355 402 434 . . . . 300 . . . . 252 Influence Increases 11479 | 10 419 302 869 849 663 . 1726 . 1270 175 745 . 190 1280 580 375 410 545 1071 Destroy 0b10 Robot/C 6860 | . 320 200 500 480 240 . 820 . 620 140 540 . 160 680 500 280 340 420 620 Destroy 0b10 Robot/NC 660 | 10 15 5 70 60 190 . 100 . 25 . 10 . 20 65 5 . 10 15 60 Destroy Leader 1324 | . 74 40 158 146 . . 230 . 176 20 30 . 10 176 30 50 . 50 134 Allied During Kill 134 | . . 24 41 69 . . . . . . . . . . . . . . . Successful Hack 428 | . 9 . 37 31 18 . 127 . 99 . . . . 57 . . . . 50 Select Force Hacks 210 | . . . . . 210 . . . . . . . . . . . . . . Disable Machine 270 | . . 30 30 45 . . 105 . 30 . . . . 15 . . . . 15 Destroy Structure 483 | . 1 3 33 18 5 . 149 . 50 . . . . 62 . . . . 162 Advance Influence 150 | . . . . . . . . . . . . . . 150 . . . . . Partial Spotted 150 | . . . . . . . 30 . 75 . . . . 15 . . . . 30 Lose Combat Pursuer 810 | . . . . . . . 165 . 195 15 165 . . 60 45 45 60 60 . Influence Decreases 11100 | 10 328 335 712 886 659 182 550 785 804 596 446 735 174 795 542 389 621 680 871 Entered New Map 3730 | . . 56 36 125 109 182 . 765 118 318 84 735 . 7 186 103 525 314 67 Time Decay 6590 | 10 328 259 626 571 550 . 500 20 676 278 362 . 174 638 356 286 96 366 494 Lost Part 70 | . . . 10 10 . . 30 . 10 . . . . . . . . . 10 Lost Ally 260 | . . 20 40 180 . . 20 . . . . . . . . . . . . Purge Threat 450 | . . . . . . . . . . . . . . 150 . . . . 300 Squads Dispatched 77 | . 5 . 1 . . . 22 . 18 . 1 . . 18 . 1 . . 11 Investigation 35 | . 2 . 1 . . . 10 . 8 . 1 . . 6 . 1 . . 6 Extermination 25 | . . . . . . . 7 . 7 . . . . 8 . . . . 3 Reinforcement 13 | . 3 . . . . . 4 . 2 . . . . 2 . . . . 2 Assault 4 | . . . . . . . 1 . 1 . . . . 2 . . . . . Garrison . | . . . . . . . . . . . . . . . . . . . . Intercept . | . . . . . . . . . . . . . . . . . . . . Searches Triggered . | . . . . . . . . . . . . . . . . . . . . Unchained Authorized 3 | . . . . . . . . . . . . . . 2 . . . . 1 Construction Impeded . | . . . . . . . . . . . . . . . . . . . . Haulers Reinforced 2 | . . . . . . . 1 . . . . . . . . . . . 1 Active Scanning Responses . | . . . . . . . . . . . . . . . . . . . . Cargo Convoy Interrupts 1 | . . . . . . . 1 . . . . . . . . . . . . Stealth | -11 -10 -10 -9 -9 -9 -9 -6 -6 -6 -6 -6 -6 -5 -5 -5 -5 -5 -4 -4 --------- Run | Yrd Mat Min Mat Sto Rec Scr Fac Was Fac Low Low Zio Pro Fac Upp Upp War Pro Fac Distress Signals 14 | . 4 . 4 2 . . 2 . 1 . . . . 1 . . . . . Communications Jammed 152 | . . . . . . . 8 . . . . . 1 . . . 143 . . Distress Signals 151 | . . . . . . . 8 . . . . . . . . . 143 . . Times Spotted 500 | . 33 10 38 30 9 . 70 5 40 12 28 . 9 44 24 19 52 23 54 Peak Tracking Total 19 | . 6 3 7 9 2 . 6 5 6 3 5 . 4 6 4 4 19 4 8 Tactical Retreats 29 | . . . . . . . 9 . 6 1 4 . . 2 2 2 2 1 . ID Masks Used 1 | . . . . . . . . . . . . . . 1 . . . . . IFF Responses 30 | . . . . . . . . . . . . . . 30 . . . . . Traps | -11 -10 -10 -9 -9 -9 -9 -6 -6 -6 -6 -6 -6 -5 -5 -5 -5 -5 -4 -4 ------- Run | Yrd Mat Min Mat Sto Rec Scr Fac Was Fac Low Low Zio Pro Fac Upp Upp War Pro Fac Traps Triggered 24 | . 4 1 2 4 . . 3 . 4 . . . . 3 . . 1 . 2 Indirectly . | . . . . . . . . . . . . . . . . . . . . Trap Hack Attempts . | . . . . . . . . . . . . . . . . . . . . Triggered . | . . . . . . . . . . . . . . . . . . . . Disarmed . | . . . . . . . . . . . . . . . . . . . . Reprogrammed . | . . . . . . . . . . . . . . . . . . . . Reused . | . . . . . . . . . . . . . . . . . . . . Traps Extracted . | . . . . . . . . . . . . . . . . . . . . Installed . | . . . . . . . . . . . . . . . . . . . . Triggered . | . . . . . . . . . . . . . . . . . . . . Machines | -11 -10 -10 -9 -9 -9 -9 -6 -6 -6 -6 -6 -6 -5 -5 -5 -5 -5 -4 -4 ---------- Run | Yrd Mat Min Mat Sto Rec Scr Fac Was Fac Low Low Zio Pro Fac Upp Upp War Pro Fac Machines Disabled 20 | . . 2 2 3 . . 7 . 2 . . . 1 1 . 1 . . 1 Max in Single Turn 3 | . . 1 1 1 . . 3 . 1 . . . 1 1 . 1 . . 1 Garrison Access 7 | . . . . 1 . . 2 . 2 . . . . 1 . . . . 1 Machines Repaired . | . . . . . . . . . . . . . . . . . . . . Machines Dismantled . | . . . . . . . . . . . . . . . . . . . . Machines Sabotaged . | . . . . . . . . . . . . . . . . . . . . Overloaded Fab Kills . | . . . . . . . . . . . . . . . . . . . . Hacking | -11 -10 -10 -9 -9 -9 -9 -6 -6 -6 -6 -6 -6 -5 -5 -5 -5 -5 -4 -4 --------- Run | Yrd Mat Min Mat Sto Rec Scr Fac Was Fac Low Low Zio Pro Fac Upp Upp War Pro Fac Machines Accessed 143 | . 4 1 10 10 14 10 26 . 24 3 2 . . 22 . 1 2 . 14 Terminals 64 | . 4 . 6 9 5 . 13 . 10 . 1 . . 9 . 1 . . 6 Fabricators 11 | . . . . . . . 2 . 4 . . . . 2 . . . . 3 Repair Stations 5 | . . . 1 . . . . . 2 . . . . 2 . . . . . Recycling Units 24 | . . . 1 . 7 . 6 . 3 . . . . 4 . . . . 3 Scanalyzers 12 | . . . 2 . . . 3 . 3 . . . . 3 . . . . 1 Garrison Access 8 | . . . . 1 . . 2 . 2 . . . . 2 . . . . 1 Total Hacks 409 | . 10 1 26 24 54 63 65 . 65 7 6 . . 43 . 6 3 . 36 Successful 295 | . 7 1 18 17 44 63 34 . 41 7 6 . . 27 . 6 3 . 21 Failed 113 | . 3 . 7 7 10 . 31 . 24 . . . . 16 . . . . 15 Catastrophic 12 | . . . 2 . . . 3 . 2 . . . . 4 . . . . 1 Database Lockouts 1 | . . . 1 . . . . . . . . . . . . . . . . Manual 176 | . 11 . 13 20 27 . 43 . 24 . . . 1 16 . . . . 21 Terminals 189 | . 10 . 16 23 20 . 42 . 25 . 5 . . 22 . 6 . . 20 Fabricators 25 | . . . . . . . 3 . 12 . . . . 3 . . . . 7 Repair Stations 14 | . . . 5 . . . . . 4 . . . . 5 . . . . . Recycling Units 34 | . . . 1 . 10 . 9 . 4 . . . . 5 . . . . 5 Scanalyzers 33 | . . . 4 . . . 9 . 12 . . . . 5 . . . . 3 Garrison Access 15 | . . . . 1 . . 2 . 8 . . . . 3 . . . . 1 Terminal Hacks 156 | . 1 1 5 6 28 63 4 . 9 7 6 . . 9 . 6 3 . 8 Record 104 | . . . . . 24 62 . . . 5 5 . . . . 6 2 . . Part Schematic 1 | . . . . . . . . . 1 . . . . . . . . . . Prototype ID Bank 2 | . . . . . . . . . 1 . . . . 1 . . . . . Open Door 10 | . . 1 . 4 . . . . . 2 1 . . . . . 1 . 1 Open DSF 1 | . . . . . . . . . 1 . . . . . . . . . . Branch Access Points 5 | . . . . . . . 1 . 2 . . . . 1 . . . . 1 Terminal Index 7 | . 1 . 2 1 1 . 1 . 1 . . . . . . . . . . Repair Station Index 2 | . . . . . . . . . 1 . . . . . . . . . 1 Recycling Unit Index 2 | . . . . . . . . . 1 . . . . 1 . . . . . Alert Level 13 | . . . 1 1 1 . 2 . . . . . . 5 . . . . 3 Unreport Threat 3 | . . . . . . . . . . . . . . 1 . . . . 2 Investigation Status 1 | . . . . . 1 . . . . . . . . . . . . . . Hauler Manifests 3 | . . . 2 . . . . . 1 . . . . . . . . . . Zone Layout 1 | . . . . . 1 . . . . . . . . . . . . . . Proto ID Catalog 1 | . . . . . . 1 . . . . . . . . . . . . . Fabricator Hacks 18 | . . . . . . . 2 . 8 . . . . 3 . . . . 5 Network Status 10 | . . . . . . . 2 . 2 . . . . 3 . . . . 3 Load Schematic 4 | . . . . . . . . . 3 . . . . . . . . . 1 Build 4 | . . . . . . . . . 3 . . . . . . . . . 1 Repair Station Hacks 12 | . . . 4 . . . . . 4 . . . . 4 . . . . . Scan Component 6 | . . . 2 . . . . . 2 . . . . 2 . . . . . Repair 6 | . . . 2 . . . . . 2 . . . . 2 . . . . . Recycling Unit Hacks . | . . . . . . . . . . . . . . . . . . . . Scanalyzer 30 | . . . 3 . . . 8 . 12 . . . . 4 . . . . 3 Insert Component 3 | . . . . . . . . . 3 . . . . . . . . . . Analyze 6 | . . . . . . . . . 6 . . . . . . . . . . Retrieve Study 21 | . . . 3 . . . 8 . 3 . . . . 4 . . . . 3 Garrison Access Hacks 7 | . . . . 1 . . 2 . 2 . . . . 1 . . . . 1 Seal Access 7 | . . . . 1 . . 2 . 2 . . . . 1 . . . . 1 Unauthorized Hacks 71 | . 6 . 5 10 16 . 18 . 6 . . . . 6 . . . . 4 Terminals 47 | . 6 . 5 10 8 . 12 . 3 . . . . 2 . . . . 1 Assimilate 3 | . . . . . . . 3 . . . . . . . . . . . . Botnet 28 | . 2 . 3 5 3 . 9 . 3 . . . . 2 . . . . 1 Skim 16 | . 4 . 2 5 5 . . . . . . . . . . . . . . Fabricators . | . . . . . . . . . . . . . . . . . . . . Repair Stations . | . . . . . . . . . . . . . . . . . . . . Recycling Units 24 | . . . . . 8 . 6 . 3 . . . . 4 . . . . 3 Recyclers 1 | . . . . . 1 . . . . . . . . . . . . . . Tunnel 7 | . . . . . 7 . . . . . . . . . . . . . . Fedlink 16 | . . . . . . . 6 . 3 . . . . 4 . . . . 3 Scanalyzers . | . . . . . . . . . . . . . . . . . . . . Garrison Access . | . . . . . . . . . . . . . . . . . . . . Data Cores Recovered 9 | . . . 1 . . . 2 . 1 . . . . 4 . . . . 1 Used 5 | . . . 1 . . . 1 . 1 . . . . 1 . . . . 1 Hacking Detections 75 | . 3 . 6 4 4 . 18 . 17 . 1 . . 13 . 1 . . 8 Full Trace Events 17 | . . . 1 . . . 4 . 5 . 1 . . 2 . 1 . . 3 Feedback Events . | . . . . . . . . . . . . . . . . . . . . Feedback Blocked . | . . . . . . . . . . . . . . . . . . . . Robot Schematics Acquired 3 | . . . . . . . . . . . . 3 . . . . . . . Robots Built . | . . . . . . . . . . . . . . . . . . . . Authchips . | . . . . . . . . . . . . . . . . . . . . Time . | . . . . . . . . . . . . . . . . . . . . Total Robot Build Rating . | . . . . . . . . . . . . . . . . . . . . Part Schematics Acquired 16 | . . . . . . . . . 4 . . 12 . . . . . . . Parts Built 8 | . . . . . . . . . 6 . . . . . . . . . 2 Authchips . | . . . . . . . . . . . . . . . . . . . . Time 237 | . . . . . . . . . 195 . . . . . . . . . 42 Total Part Build Rating 48 | . . . . . . . . . 40 . . . . . . . . . 8 Part Studies Acquired 15 | . . . 2 . . . 8 . 1 . . . . 2 . . . . 2 Parts Repaired 6 | . . . 2 . . . . . 2 . . . . 2 . . . . . Time 218 | . . . 76 . . . . . 50 . . . . 92 . . . . . Parts Recycled . | . . . . . . . . . . . . . . . . . . . . Recycled Matter . | . . . . . . . . . . . . . . . . . . . . Retrieved Matter . | . . . . . . . . . . . . . . . . . . . . Retrieved Components . | . . . . . . . . . . . . . . . . . . . . Parts Scanalyzed 3 | . . . . . . . . . 3 . . . . . . . . . . Part Schematics Acquired 3 | . . . . . . . . . 3 . . . . . . . . . . Parts Damaged 1 | . . . . . . . . . 1 . . . . . . . . . . Bothacking | -11 -10 -10 -9 -9 -9 -9 -6 -6 -6 -6 -6 -6 -5 -5 -5 -5 -5 -4 -4 ------------ Run | Yrd Mat Min Mat Sto Rec Scr Fac Was Fac Low Low Zio Pro Fac Upp Upp War Pro Fac Used RIF Installer . | . . . . . . . . . . . . . . . . . . . . Robots Hacked . | . . . . . . . . . . . . . . . . . . . . Non-combat . | . . . . . . . . . . . . . . . . . . . . Combat . | . . . . . . . . . . . . . . . . . . . . Robot Hacks Applied . | . . . . . . . . . . . . . . . . . . . . Relay Couplers Released 2 | . . . . . . . . . . . . . . 2 . . . . . Machine Destruction 2 | . . . . . . . . . . . . . . 2 . . . . . Fabnet Peak Effective % . | . . . . . . . . . . . . . . . . . . . . Robots Rewired . | . . . . . . . . . . . . . . . . . . . . Allies Hacked . | . . . . . . . . . . . . . . . . . . . . Hacks Repelled . | . . . . . . . . . . . . . . . . . . . . Allies | -11 -10 -10 -9 -9 -9 -9 -6 -6 -6 -6 -6 -6 -5 -5 -5 -5 -5 -4 -4 -------- Run | Yrd Mat Min Mat Sto Rec Scr Fac Was Fac Low Low Zio Pro Fac Upp Upp War Pro Fac Total Allies 18 | . . 5 . 10 . . 3 . . . . . . . . . . . . Largest Group 10 | . . 4 4 10 . . 1 . . . . . . . . . . . . Highest-Rated Group 88 | . . 62 62 88 . . 26 . . . . . . . . . . . . Highest-Rated Ally 31 | . . 31 31 16 . . 26 . . . . . . . . . . . . Total Orders . | . . . . . . . . . . . . . . . . . . . . Ally Attacks 93 | . . 15 27 51 . . . . . . . . . . . . . . . Total Damage 930 | . . 199 277 454 . . . . . . . . . . . . . . . Kills 17 | . . 4 7 6 . . . . . . . . . . . . . . . Allies Corrupted 1 | . . . . 1 . . . . . . . . . . . . . . . Allies Melted 1 | . . . . . . . . . 1 . . . . . . . . . . Intel | -11 -10 -10 -9 -9 -9 -9 -6 -6 -6 -6 -6 -6 -5 -5 -5 -5 -5 -4 -4 ------- Run | Yrd Mat Min Mat Sto Rec Scr Fac Was Fac Low Low Zio Pro Fac Upp Upp War Pro Fac Active Infowar (turns) 26875 | 3 969 773 2178 1730 2049 3486 3791 50 2658 616 825 466 603 2260 812 636 650 1001 1319 Optics 1 | . . . . . . . . . 1 . . . . . . . . . . Sensors 15278 | . . . . . . . 3395 50 2658 616 825 466 603 2260 812 636 637 1001 1319 Terrain 1 | . . . . . . . . . . . . . . 1 . . . . . Structural 19469 | . . . . . 329 3486 3791 50 2658 616 825 466 603 2248 812 636 629 1001 1319 Traps 1 | . . . . . . . . . 1 . . . . . . . . . . Seismic 11584 | 3 969 773 2178 1730 2049 3486 396 . . . . . . . . . . . . Triangulation 10 | . . . . . . . . . 10 . . . . . . . . . . Jamming 18361 | . . . . . . 2709 3791 50 2658 616 825 466 603 2231 812 636 644 1001 1319 ID Mask 66 | . . . . . . . . . . . . . . 66 . . . . . Robot Analysis Total . | . . . . . . . . . . . . . . . . . . . . Derelict Logs Recovered 14 | . . 2 . . . . . . . 2 . 2 2 . 2 2 . 2 . Drone Launches . | . . . . . . . . . . . . . . . . . . . . Drone Recoveries . | . . . . . . . . . . . . . . . . . . . . Exploration | -11 -10 -10 -9 -9 -9 -9 -6 -6 -6 -6 -6 -6 -5 -5 -5 -5 -5 -4 -4 ------------- Run | Yrd Mat Min Mat Sto Rec Scr Fac Was Fac Low Low Zio Pro Fac Upp Upp War Pro Fac Turns Passed 26933 | 61 969 773 2178 1730 2049 3486 3791 50 2658 616 825 466 603 2260 812 636 650 1001 1319 Spaces Moved 27941 | 46 581 481 1284 1053 1351 2138 3888 100 3528 1249 1204 1042 1271 2895 1118 1126 1096 1095 1395 Core 17 | 17 . . . . . . . . . . . . . . . . . . . Treads . | . . . . . . . . . . . . . . . . . . . . Legs 7953 | 29 581 481 1284 1053 1351 2138 1036 . . . . . . . . . . . . Wheels . | . . . . . . . . . . . . . . . . . . . . Hover 19971 | . . . . . . . 2852 100 3528 1249 1204 1042 1271 2895 1118 1126 1096 1095 1395 Flight . | . . . . . . . . . . . . . . . . . . . . Fastest Speed 35 | 50 120 120 120 120 120 120 48 48 44 44 44 44 40 38 38 38 38 38 35 Average Speed 69 | 95 120 120 134 120 128 161 69 48 51 44 44 44 40 39 38 38 38 38 37 Slowest Speed 190 | 120 120 120 190 120 190 190 190 48 102 44 98 44 44 44 92 44 42 38 96 Overloaded Moves . | . . . . . . . . . . . . . . . . . . . . Propulsion Burnouts . | . . . . . . . . . . . . . . . . . . . . Robots Hopped . | . . . . . . . . . . . . . . . . . . . . Potential Cave-ins 7 | . . . . . . . 2 . . 2 . . . . . . 3 . . Cave-ins Triggered 1 | . . . . . . . . . . 1 . . . . . . . . . Exploration Rate (%) 80 | 3 95 100 93 93 99 93 75 67 56 99 84 88 94 64 93 97 91 96 26 Regions Visited 19 Branch Regions 12 Pre-discovered Areas 22 | . . 1 . 2 11 . 1 . . . 2 1 . . 1 1 . 2 . Known Exits Taken 16 | . 1 1 1 1 1 1 . . 1 1 1 1 1 1 1 1 1 1 . Unknown Exits Taken 1 | 1 . . . . . . . . . . . . . . . . . . . Scrap Searched 21 | . . 2 . . . 3 . . . 2 1 2 . . 3 3 . 5 . Spaces Dug 160 | . . . . 3 5 . 51 . 29 . 1 . 2 31 . 16 . 4 18 Terrain Destroyed 716 | . . 3 33 24 5 . 179 . 87 43 24 . 8 31 . 59 65 33 122 Melee 142 | . . . . 3 5 . 51 . 22 . 1 . 2 31 . 5 . 4 18 Projectile 1 | . . . . 1 . . . . . . . . . . . . . . . AOE 573 | . . 3 33 20 . . 128 . 65 43 23 . 6 . . 54 65 29 104 Terrain Rammed . | . . . . . . . . . . . . . . . . . . . . Walls Destroyed . | . . . . . . . . . . . . . . . . . . . . Machines Disabled . | . . . . . . . . . . . . . . . . . . . . Actions | -11 -10 -10 -9 -9 -9 -9 -6 -6 -6 -6 -6 -6 -5 -5 -5 -5 -5 -4 -4 --------- Run | Yrd Mat Min Mat Sto Rec Scr Fac Was Fac Low Low Zio Pro Fac Upp Upp War Pro Fac Total 33696 | 54 700 647 1612 1399 1511 2171 4589 101 4252 1295 1429 1049 1338 3850 1448 1299 1287 1630 2035 Wait 3282 | . 13 110 183 179 49 14 230 . 448 27 111 . 23 613 228 109 72 455 418 Move 27921 | 45 580 480 1283 1052 1350 2137 3888 99 3526 1247 1203 1041 1270 2894 1117 1125 1095 1094 1395 Hop . | . . . . . . . . . . . . . . . . . . . . Pick Up 196 | . 4 8 12 12 4 3 50 . 32 . 2 . 4 33 10 3 5 4 10 Fast Attach 125 | 6 3 1 5 1 1 5 18 . 14 1 3 3 1 13 4 11 17 1 17 Attach 89 | . 1 2 3 10 1 . 22 . 20 . . . 5 20 1 . . . 4 Detach 6 | . . . . 1 . . . . 3 . . . 1 1 . . . . . Swap 111 | . . 7 8 4 . 1 29 1 18 3 3 1 3 12 . 2 1 5 13 Drop 271 | . 2 6 13 11 2 6 58 1 42 . 4 4 6 42 10 13 22 4 25 Fire 226 | 3 76 15 27 3 . . 20 . 7 4 5 . 2 . . 6 41 3 14 Melee 813 | . . . 38 67 84 . 175 . 84 9 43 . 16 121 45 18 1 29 83 Ram . | . . . . . . . . . . . . . . . . . . . . Kick . | . . . . . . . . . . . . . . . . . . . . Crush . | . . . . . . . . . . . . . . . . . . . . Escape Stasis 2 | . . . . . . . . . 1 1 . . . . . . . . . Rewire . | . . . . . . . . . . . . . . . . . . . . Trap . | . . . . . . . . . . . . . . . . . . . . Miscellaneous 654 | . 21 18 40 59 20 5 99 . 57 3 55 . 7 101 33 12 33 35 56 Route ------- -11/Scrapyard -10/Materials (discovered 4 exits: *Mat x3 / *Min) -10/Mines (discovered 3 exits: *Mat x2 / *Sub) -9/Materials (discovered 6 exits: *Mat x3 / *Min / *Sto x2) -9/Storage (discovered 2 exits: *Mat / *Rec) -9/Recycling (discovered 2 exits: *Fac / *Scr) -9/Scraptown (discovered 2 exits: *Fac x2) -6/Factory (discovered 3 exits: *Fac / *Low x2) -6/Waste -6/Factory (discovered 6 exits: *Fac x4 / *Low x2) -6/Lower Caves (discovered 2 exits: *Low / *Zio) -6/Lower Caves (discovered 2 exits: *Fac / *Zio) -6/Zion -5/Proximity Caves -5/Factory (discovered 4 exits: *Fac x2 / *Upp x2) -5/Upper Caves -5/Upper Caves (discovered 2 exits: *Fac / *War) -5/Warlord -4/Proximity Caves -4/Factory (discovered 8 exits: *Res x3 / *Upp x2 / *Ext x2 / Arm) History --------- Turn | Location | Event 6 | -11/Scrapyard | Upgraded with Propulsion slot (x1) 6 | -11/Scrapyard | Upgraded with Utility slot (x1) 6 | -11/Scrapyard | Upgraded with Weapon slot (x1) 9 | -11/Scrapyard | Discovered new exit (range 15) 62 | -11/Scrapyard | Entered Materials 262 | -10/Materials | Discovered new exit (range 13) 307 | -10/Materials | Build established: Mutant 450 | -10/Materials | Discovered new exit (range 12) 659 | -10/Materials | Reached level 2 670 | -10/Materials | Core integrity fell below 50% 695 | -10/Materials | Discovered new exit (range 12) 880 | -10/Materials | Discovered new exit (range 10) 1030 | -10/Materials | Identified exit to Mines 1031 | -10/Materials | Entered Mines 1060 | -10/Mines | Upgraded with Utility slot (x1) 1090 | -10/Mines | Reached level 3 1269 | -10/Mines | Assisted by bots powering up and referring to "LRC-V3" 1289 | -10/Mines | Learned Materials stockpile data 1386 | -10/Mines | Learned location of Storage (-9) 1453 | -10/Mines | Discovered new exit (range 8) 1459 | -10/Mines | Identified exit to Subcaves 1547 | -10/Mines | Met a Derelict who couldn't figure out how to use a Trap Extractor 1589 | -10/Mines | Discovered new exit (range 6) 1596 | -10/Mines | Identified exit to Materials 1736 | -10/Mines | Discovered exit to Materials (range 10) 1804 | -10/Mines | Entered Materials 1804 | -9/Materials | Accompanied by 4 allies 1806 | -9/Materials | Reached level 4 1809 | -9/Materials | Led the pair of lost Derelicts to an unsafe place 1972 | -9/Materials | Reached level 5 1976 | -9/Materials | Discovered new exit (range 10) 2234 | -9/Materials | Discovered new exit (range 7) 2241 | -9/Materials | Identified exit to Materials 2503 | -9/Materials | Central database locked down 2564 | -9/Materials | Discovered exit to Materials (range 3) 2593 | -9/Materials | Discovered new exit (range 16) 2638 | -9/Materials | Reached level 6 2666 | -9/Materials | Upgraded with Utility slot (x1) 2703 | -9/Materials | Identified exit to Storage 3146 | -9/Materials | Discovered exit to Materials (range 16) 3244 | -9/Materials | Core integrity fell below 50% 3375 | -9/Materials | Build established: Gladiator 3426 | -9/Materials | Discovered exit to Storage (range 16) 3777 | -9/Materials | Repaired Lgt. Nuclear Core 3816 | -9/Materials | Repaired Reaction Control System 3839 | -9/Materials | Identified exit to Mines 3982 | -9/Materials | Entered Storage 3984 | -9/Storage | Reached level 7 4235 | -9/Storage | Reached level 8 4403 | -9/Storage | Assisted by bots powering up and referring to "LRC-V3" 4661 | -9/Storage | Used back door to open Recycling access 4661 | -9/Storage | Discovered new exit (range 4) 4663 | -9/Storage | Identified exit to Recycling 4704 | -9/Storage | Build established: Commander-Gladiator 4766 | -9/Storage | Lost 5 allies 4961 | -9/Storage | Reached level 9 4993 | -9/Storage | Lost 4 allies 5036 | -9/Storage | Learned Materials stockpile data 5069 | -9/Storage | Learned location of Recycling (-9) 5109 | -9/Storage | Learned Recycling recycling unit intel 5136 | -9/Storage | Loaded intel: 1 garrison access location 5172 | -9/Storage | Learned 2 Materials zone layouts 5218 | -9/Storage | Learned location of 1 exit from Recycling 5265 | -9/Storage | Build established: Gladiator 5276 | -9/Storage | Learned location of 1 exit from Storage 5712 | -9/Storage | Entered Recycling 5713 | -9/Recycling | Identified exit to Factory 5714 | -9/Recycling | Loaded intel: 7 recycling unit locations 5992 | -9/Recycling | Scanned before Scraplab entrance 6569 | -9/Recycling | Reached level 10 6958 | -9/Recycling | Learned Storage stockpile data 7074 | -9/Recycling | Identified exit to Scraptown 7095 | -9/Recycling | Learned Materials repair station intel 7127 | -9/Recycling | Learned location of Zion (-6) 7225 | -9/Recycling | Learned Storage interactive machine intel 7432 | -9/Recycling | Upgraded with Utility slot (x1) 7725 | -9/Recycling | Entered Scraplab 7761 | -9/Recycling | Entered Scraptown 7761 | -9/Scraptown | System corruption cleaned by C-Scrubber 8083 | -9/Scraptown | Visited SPCMW 8168 | -9/Scraptown | Visited Cyclists 8225 | -9/Scraptown | Visited IN-MT5's Study 8257 | -9/Scraptown | Heard Great Nut preacher, LISTEN AND RECITE! 8273 | -9/Scraptown | Visited Awakened 8530 | -9/Scraptown | Upgraded with Utility slot (x1) 8762 | -9/Scraptown | Visited The Evicted 8787 | -9/Scraptown | Visited Shadow of the Wyrm 8826 | -9/Scraptown | Build established: Infiltrator-Gladiator 8859 | -9/Scraptown | Discovered new exit (range 11) 8980 | -9/Scraptown | Identified exit to Factory 9151 | -9/Scraptown | Visited Symbiants 9468 | -9/Scraptown | Visited UFD Registry 9468 | -9/Scraptown | Registered with UFD as "Shadowrider" 9586 | -9/Scraptown | Entered Cyclist Reading Room 9751 | -9/Scraptown | Visited Modified Component R&D 9842 | -9/Scraptown | Received an X-ray algorithm 10226 | -9/Scraptown | Upgraded with Propulsion slot (x1) 10386 | -9/Scraptown | Visited Curators Association 10416 | -9/Scraptown | Visited Science Guys 10464 | -9/Scraptown | Visited Scrapoid Pod Storage 10630 | -9/Scraptown | Visited Infowarlord's Domain 10641 | -9/Scraptown | Found Exp. Signal Interpreter 10669 | -9/Scraptown | Visited Derelict Rescue Squad 10702 | -9/Scraptown | Visited Observation Area 10796 | -9/Scraptown | Visited Scrap Suit Storage 10936 | -9/Scraptown | Discovered exit to Factory (range 3) 11133 | -9/Scraptown | Met Optimus 11133 | -9/Scraptown | Accepted into 0bPrime 11247 | -9/Scraptown | Entered Factory 11249 | -6/Factory | Reached level 11 11610 | -6/Factory | Upgraded with Utility slot (x1) 12011 | -6/Factory | Core integrity fell below 50% 12013 | -6/Factory | Reached level 12 12248 | -6/Factory | Upgraded with Power slot (x1) 12536 | -6/Factory | Build established: Scavenger-Gladiator 12620 | -6/Factory | Core integrity fell below 20% 13058 | -6/Factory | Reached level 13 13152 | -6/Factory | Upgraded with Weapon slot (x1) 13192 | -6/Factory | Upgraded with Propulsion slot (x1) 13262 | -6/Factory | Loaded intel: 8 recycling unit locations 13304 | -6/Factory | Discovered new exit (range 16) 13334 | -6/Factory | Learned location of Protoforge (-2) 13560 | -6/Factory | Upgraded with Weapon slot (x1) 13640 | -6/Factory | Build established: Infiltrator-Ninja 13733 | -6/Factory | Discovered new exit (range 3) 13734 | -6/Factory | Identified exit to Factory 13747 | -6/Factory | Discovered new exit (range 11) 13752 | -6/Factory | Identified exit to Lower Caves 14074 | -6/Factory | Cargo convoy interrupted 14196 | -6/Factory | Reached level 14 14243 | -6/Factory | Destroyed 11 combat bots 14397 | -6/Factory | First assault squad dispatched 14399 | -6/Factory | Upgraded with Utility slot (x1) 14494 | -6/Factory | Reached level 15 14738 | -6/Factory | Build established: Scientist-Ninja 15038 | -6/Factory | Sucked down chute 15038 | -6/Factory | Entered Waste 15049 | -6/Waste | Spotted C-40 Crusher 15053 | -6/Waste | EMP discharged 15053 | -6/Waste | System corruption reached 10% 15061 | -6/Waste | Spotted C-40 Crusher 15067 | -6/Waste | Spotted C-40 Crusher 15068 | -6/Waste | Spotted C-40 Crusher 15071 | -6/Waste | Spotted C-40 Crusher 15082 | -6/Waste | Discovered new exit (range 11) 15087 | -6/Waste | Identified exit to Factory 15088 | -6/Waste | Entered Factory 15095 | -6/Factory | Discovered exit to Factory (range 14) 15120 | -6/Factory | Found Powered Armor 15163 | -6/Factory | Build established: Infiltrator-Ninja 15180 | -6/Factory | Upgraded with Propulsion slot (x1) 15193 | -6/Factory | Identified exit to DSF 15275 | -6/Factory | Ran an X-ray algorithm 15311 | -6/Factory | Reached level 16 15320 | -6/Factory | Discovered exit to Lower Caves (range 8) 15542 | -6/Factory | Fabricated Enh. Force Lance (x2) 15622 | -6/Factory | Discovered exit to Factory (range 13) 15673 | -6/Factory | Loaded intel: 8 recycling unit locations 15780 | -6/Factory | Repaired Lgt. Fission Core+ 15994 | -6/Factory | Build established: Scientist-Ninja 16052 | -6/Factory | Found Prototype Processor 16053 | -6/Factory | Identified Exp. Targeting Computer 16075 | -6/Factory | Discovered exit to Factory (range 5) 16190 | -6/Factory | Noticed a derelict Sapper rigging charges 16354 | -6/Factory | Reached level 17 16549 | -6/Factory | Fabricated Graphene Brace? 16555 | -6/Factory | Upgraded with Utility slot (x1) 16783 | -6/Factory | Discovered exit to Factory (range 5) 16814 | -6/Factory | Repaired Imp. Gravmag System+ 17188 | -6/Factory | First assault squad dispatched 17331 | -6/Factory | Build established: Scientist-Gladiator 17598 | -6/Factory | Reached level 18 17614 | -6/Factory | Fabricated Imp. Gravmag System (x2) 17617 | -6/Factory | Upgraded with Utility slot (x1) 17746 | -6/Factory | Entered Lower Caves 17792 | -6/Lower Caves | Destroyed 10 combat bots 17811 | -6/Lower Caves | Crushed by falling debris 17832 | -6/Lower Caves | Encountered a Warlord checkpoint 17857 | -6/Lower Caves | A Derelict revealed a hidden shortcut to a safe place 17860 | -6/Lower Caves | Identified exit to Zion 17910 | -6/Lower Caves | Learned Factory terminal intel 17913 | -6/Lower Caves | Build established: Scientist-Ninja 18022 | -6/Lower Caves | Learned Factory machine intel 18064 | -6/Lower Caves | Spotted B-75 Beast 18270 | -6/Lower Caves | Entered an active Warlord outpost 18277 | -6/Lower Caves | Learned Factory emergency access door positions 18277 | -6/Lower Caves | Learned Factory terminal intel 18320 | -6/Lower Caves | Ambushed by wild Derelicts 18354 | -6/Lower Caves | Discovered new exit (range 5) 18356 | -6/Lower Caves | Identified exit to Lower Caves 18362 | -6/Lower Caves | Entered another Lower Caves area 18408 | -6/Lower Caves | Attracted the attention of an 0b10 checkpoint 18467 | -6/Lower Caves | Reached level 19 18513 | -6/Lower Caves | Discovered exit to Factory (range 8) 18941 | -6/Lower Caves | Discovered exit to Zion (range 5) 19172 | -6/Lower Caves | Learned location of Armory (-4) 19172 | -6/Lower Caves | Learned Extension emergency access door positions 19187 | -6/Lower Caves | Entered Zion 19214 | -6/Zion | Discovered new exit (range 14) 19222 | -6/Zion | Identified exit to Proximity Caves 19244 | -6/Zion | Found Prototype Launcher 19244 | -6/Zion | Identified Rocket Array 19257 | -6/Zion | System corruption cleaned by Quarantine Array 19422 | -6/Zion | Found Unknown Piercing Weapon 19422 | -6/Zion | Identified CR-A16's Pointy Stick 19533 | -6/Zion | Turned away by Imprinter 19587 | -6/Zion | Learned Factory terminal intel 19653 | -6/Zion | Entered Proximity Caves 19655 | -5/Proximity Caves | Reached level 20 19670 | -5/Proximity Caves | Upgraded with Propulsion slot (x1) 19729 | -5/Proximity Caves | Build established: Machinist-Ninja 19791 | -5/Proximity Caves | Learned Factory emergency access door positions 19854 | -5/Proximity Caves | Spotter reported a threat 19899 | -5/Proximity Caves | Discovered exit to Factory (range 12) 19955 | -5/Proximity Caves | Acquired the password to a Derelict Tinkerer's latest research 19960 | -5/Proximity Caves | Found Prototype Special Weapon 19960 | -5/Proximity Caves | Identified Molecular Deconstructor 20017 | -5/Proximity Caves | Learned Factory emergency access door positions 20093 | -5/Proximity Caves | Ambushed by research squad 20256 | -5/Proximity Caves | Entered Factory 20258 | -5/Factory | Loaded intel: 280 machine locations 20258 | -5/Factory | Reached level 21 20259 | -5/Factory | Loaded intel: 26 terminal locations 20260 | -5/Factory | Discovered new exit (range 16) 20339 | -5/Factory | Identified exit to Factory 20442 | -5/Factory | Loaded intel: 8 recycling unit locations 20799 | -5/Factory | Discovered exit to Factory (range 4) 20958 | -5/Factory | Reached level 22 21193 | -5/Factory | Found Prototype Launcher 21193 | -5/Factory | Identified Tesla Bomb Launcher 21198 | -5/Factory | Spotted B-75 Beast 21212 | -5/Factory | Discovered new exit (range 13) 21217 | -5/Factory | Revealed the true nature of CR-A16's Pointy Stick 21219 | -5/Factory | Destroyed B-75 Beast 21226 | -5/Factory | Identified exit to Upper Caves 21407 | -5/Factory | Upgraded with Power slot (x1) 21732 | -5/Factory | Repaired Broken Imp. Gravmag System+ 22050 | -5/Factory | Unchained authorized (6S-H0T) 22100 | -5/Factory | Repaired Powered Armor 22281 | -5/Factory | Destroyed 6S-H0T 22288 | -5/Factory | Found ID Mask 22288 | -5/Factory | ID Mask engaged 22354 | -5/Factory | ID Mask no longer valid 22356 | -5/Factory | First assault squad dispatched 22453 | -5/Factory | Unchained authorized (QV-33N) 22516 | -5/Factory | Entered Upper Caves 22705 | -5/Upper Caves | Reached level 23 22804 | -5/Upper Caves | Learned 12 Factory zone layouts 22890 | -5/Upper Caves | Destroyed 9 combat bots 23181 | -5/Upper Caves | Discovered new exit (range 8) 23184 | -5/Upper Caves | Identified exit to Upper Caves 23328 | -5/Upper Caves | Entered another Upper Caves area 23596 | -5/Upper Caves | Discovered exit to Factory (range 6) 23653 | -5/Upper Caves | Attracted the attention of an 0b10 checkpoint 23681 | -5/Upper Caves | Encountered a Warlord checkpoint 23839 | -5/Upper Caves | Discovered new exit (range 14) 23844 | -5/Upper Caves | Identified exit to Warlord 23848 | -5/Upper Caves | Learned Factory interactive machine intel 23902 | -5/Upper Caves | Attacked by a delusional Derelict stockpiling parts 23949 | -5/Upper Caves | Learned 8 Research zone layouts 23949 | -5/Upper Caves | Learned Factory emergency access door positions 23949 | -5/Upper Caves | Learned Research emergency access door positions 23964 | -5/Upper Caves | Entered Warlord 23995 | -5/Warlord | System corruption cleaned by Quarantine Array 24003 | -5/Warlord | Discovered new exit (range 14) 24007 | -5/Warlord | Identified exit to Proximity Caves 24190 | -5/Warlord | Rebuked by Warlord 24205 | -5/Warlord | Warlord's base attacked by MAIN.C 24244 | -5/Warlord | Found Prototype Device 24244 | -5/Warlord | Identified Minesniffer Drone Bay 24269 | -5/Warlord | Found Prototype Device 24269 | -5/Warlord | Identified Wardrone Bay 24304 | -5/Warlord | Found Prototype Energy Gun 24304 | -5/Warlord | Identified Vortex Shotgun 24512 | -5/Warlord | Warlord forces counterattacked 24518 | -5/Warlord | Reached level 24 24540 | -5/Warlord | Spotted Executioner 24547 | -5/Warlord | Spotted Executioner 24551 | -5/Warlord | Destroyed Executioner 24553 | -5/Warlord | Destroyed Executioner 24574 | -5/Warlord | Destroyed 15 combat bots 24588 | -5/Warlord | Lost 4 allies 24605 | -5/Warlord | Spotted B-75 Beast 24605 | -5/Warlord | Spotted B-86 Titan 24609 | -5/Warlord | Spotted Striker 24614 | -5/Warlord | Entered Proximity Caves 24633 | -4/Proximity Caves | Upgraded with Utility slot (x1) 24765 | -4/Proximity Caves | Learned location of Quarantine (-2) 24774 | -4/Proximity Caves | Spotted B-86 Titan 24780 | -4/Proximity Caves | Destroyed B-86 Titan 24968 | -4/Proximity Caves | Discovered exit to Factory (range 14) 25001 | -4/Proximity Caves | Reached level 25 25306 | -4/Proximity Caves | Received a Behemoth hack from an annoying Tinkerer 25468 | -4/Proximity Caves | Attracted the attention of an 0b10 checkpoint 25615 | -4/Proximity Caves | Entered Factory 25616 | -4/Factory | Identified exit to Research 25616 | -4/Factory | Identified exit to Armory 25617 | -4/Factory | Identified exit to Extension 25619 | -4/Factory | Loaded intel: 56 interactive machine locations 25620 | -4/Factory | Loaded intel: 28 terminal locations 25783 | -4/Factory | Discovered new exit (range 8) 25789 | -4/Factory | Identified exit to Upper Caves 25820 | -4/Factory | Unchained authorized (QV-33N) 25901 | -4/Factory | Found Unknown Device 25901 | -4/Factory | Identified Launcher Loader 25919 | -4/Factory | Found Prototype Launcher 25919 | -4/Factory | Identified Com. Tesla Bomb Launcher 25945 | -4/Factory | Loaded intel: 8 recycling unit locations 26079 | -4/Factory | Reached level 26 26113 | -4/Factory | Destroyed 8 combat bots 26412 | -4/Factory | Fabricated Powered Armor? 26567 | -4/Factory | Core integrity fell below 50% 26591 | -4/Factory | Build established: Scientist-Ninja 26926 | -4/Factory | Core integrity fell below 20% 26934 | -4/Factory | Destroyed by Thermal Drone with Thermal Shotgun Last Messages --------------- Current Alert Level: 1-Z 26864_ ALERT: Suspicious activity at Terminal F015. Dispatching Investigation squad. 26866_ Connecting with Terminal... 26866_ ALERT: Suspicious activity at Terminal F017. Dispatching Investigation squad. 26890_ System corrupted: Matter fused (-6). 26906_ U-05 Engineer builds a Wall. 26911_ ALERT: Potential suspicious activity detected, Programmers report to Factory Zone 6H. 26917_ System corrupted: Component data lost. 26924_ CR-A16's Behemoth Slayer follow-up attack on Kinetic Drone. 26926_ Enh. Force Lance follow-up attack on Thermal Drone. 26928_ Kinetic Drone suffers critical hit (Burn). 26928_ Enh. Force Lance follow-up attack on Antisys Drone. 26928_ Antisys Drone suffers critical hit (Impale). 26928_ Destroyed Prototype Energy Gun. Antisys Drone disintegrates. 26932_ Kinetic Drone destroyed. 26933_ System corrupted: Matter fused (-7). Map ----- +----------------------------------------------------+ | ?????????????????????????????????????????????????? | | ???????????????????????????????????? # """ """ | | ???????????????????????????????????? # """ """ | | ??????????????????????????????????? + """ """ | | ???????????????????????????????????#+#### | | ??????????????????????????????????? | | ??????????????????????????????????? | | ??????????????????????? ########### | | ???????????????????????############# # # | | ???????????????????????# # # """" # | | ?????????????????????????! + + """" # | | ????????????????????????? """ # # """" # | | ???????????????????????? """ # # """" # | | ?????????????????????? # """ # # # | | ??????????????n??????? # "T" # # # | | ?????????????????????? # """ # # # | | ?????????????????????? ############" ##+######## | | ?????????????????????? ############# ## ""G"" | | ???????????????????????????######## # "" "" | | ??????????????????? ############ "" # | | ???????????????????########## u T + """"""" | | ???????????????????## ### ##### # """"""" | | ???????????????????## ### ##### [ # """"""" | | ???????????????????## "n ##?######## """"""" | | ???????????????????## % ######?######## | | ???????????????????## @######???????########### | | ???????????????????######;##########???########### | | ???????????????????#################?????????????? | | ???????????????????????### ##?????????????? | | ????????????????????????## u""""" ##?????????????? | | ??????????g?????g???????## """"" ##?????????????? | | ????????????????????????##* """ ##?????????????? | | ??????????+?????+???????## ##?????????????? | | ????????????????????????## """"" ##?????????????? | | ????????????????????????## """"" ##?????????????? | | ????????????????????????##! """ ##?????????????? | | ????????????????????????## ##?????????????? | | ????????????????????????###+########?????????????? | | ???????????????????????? ????????????+? | | ??????????????????s???????? ????????????????????? | | ?????????????>????????????? ????????????????????? | | ??????????????????????????? ????????????????????? | | ??????????????????????????? ????????????????????? | | ?????????????????????????????????????????????????? | | ?????????????????????????????????????????????????? | | ?????????????????????????????????????????????????? | | ?????????????????????????????????????????????????? | | ?????????????????????????????????????????????????? | | ??????????+?????+????????????????????????????????? | | ?????????????????????????????????????????????????? | +----------------------------------------------------+ Best States ------------- Heat Dissipation 55 Energy Generation 59 Energy Capacity 270 Matter Stores 300 Matter Capacity 300 Sight Range 20 Robot Scan Range 16 Terrain Scan Density 10 Jamming Range 14 Armor Coverage 400 Resistance: KI 25 Melee Speed Boost 30 Phase Shifting 5 Evasion (%) 73 Targeting Accuracy 5 Matter Filtering 50 Force Boost 20 Offensive Hacking 15 Defensive Hacking 5 Item Schematics ----------------- Graphene Brace | -6/Factory | Hacked Phase Shifter | -6/Factory | Scanalyzed Powered Armor | -6/Factory | Scanalyzed Imp. Gravmag System | -6/Factory | Scanalyzed Power Sword | -6/Zion | Archive Antigrav System | -6/Zion | Archive Drone Bay | -6/Zion | Archive Imp. Kinecellerator | -6/Zion | Archive Adv. Plasma Cannon | -6/Zion | Archive Magnetic Acceleration Cannon | -6/Zion | Archive Hvy. Plasma Cannon | -6/Zion | Archive Phase Gun | -6/Zion | Archive Energy Well | -6/Zion | Archive Disruptor Cannon | -6/Zion | Archive Imp. Remote Datajack | -6/Zion | Archive Imp. Transmission Jammer | -6/Zion | Archive Robot Schematics ------------------ A-02 Transporter | -6/Zion | Archive R-06 Scavenger | -6/Zion | Archive H-66 Slayer | -6/Zion | Archive Fabricated ------------ Enh. Force Lance | x2 | -6/Factory | Preloaded Graphene Brace | x2 | -6/Factory Imp. Gravmag System | x2 | -6/Factory Powered Armor | x2 | -4/Factory Repaired ---------- Lgt. Nuclear Core | 62% | -9/Materials Reaction Control System | 60% | -9/Materials Lgt. Fission Core | 30% | -6/Factory Imp. Gravmag System | 72% | -6/Factory Imp. Gravmag System | 99% | -5/Factory | Broken Powered Armor | 56% | -5/Factory Studied --------- Hvy. Assault Rifle | -9/Materials | Hacked Grenade Launcher | -9/Materials | Hacked Mni. Grenade Launcher | -6/Factory | Hacked Hvy. Pick | -6/Factory | Hacked Lgt. Nuclear Core | -6/Factory | Hacked Hvy. Mace | -6/Factory | Hacked Scythe | -6/Factory | Hacked Power Sword | -6/Factory | Hacked Imp. Gravmag System | -6/Factory | Hacked Lgt. Fission Core | -6/Factory | Hacked Spear | -6/Factory | Hacked Mic. Fission Core | -5/Factory | Hacked Lance | -5/Factory | Hacked Imp. Antigrav System | -4/Factory | Hacked Force Lance | -4/Factory | Hacked Alien Tech Used ----------------- None Achievements -------------- Bob, First Of His Name Hammer Time Jackpot Network Effect Recruitment Drive Challenges ------------ None RPGLIKE | -11 -10 -10 -9 -9 -9 -9 -6 -6 -6 -6 -6 -6 -5 -5 -5 -5 -5 -4 -4 --------- Run | Yrd Mat Min Mat Sto Rec Scr Fac Was Fac Low Low Zio Pro Fac Upp Upp War Pro Fac Levels Raised 25 | . 1 1 3 3 1 . 5 . 3 . 1 . 1 2 1 . 1 1 1 XP Earned 40933 | 3000 1950 1917 5106 3510 1406 304 7927 200 3596 626 1258 220 1586 3157 803 495 728 1492 1652 XP Spent 36980 | 1500 1500 800 1100 . 1400 2500 11430 . 8100 . . . 2250 2200 1000 . . 3200 . Upgrades 51 | 3 3 1 1 . 1 2 23 . 6 . . . 2 7 1 . . 1 . Power Slot 2 | . . . . . . . 1 . . . . . . 1 . . . . . Propulsion Slot 5 | 1 . . . . . 1 1 . 1 . . . 1 . . . . . . Utility Slot 10 | 1 . 1 1 . 1 1 2 . 2 . . . . . . . . 1 . Weapon Slot 3 | 1 . . . . . . 2 . . . . . . . . . . . . Core Integrity 8 | . . . . . . . 8 . . . . . . . . . . . . Heat Dissipation 5 | . . . . . . . 1 . . . . . . 4 . . . . . Energy Generation 3 | . . . . . . . 1 . . . . . 1 1 . . . . . Mass Support 1 | . . . . . . . 1 . . . . . . . . . . . . Inventory Capacity 4 | . 3 . . . . . . . . . . . . . 1 . . . . Melee Accuracy 6 | . . . . . . . 6 . . . . . . . . . . . . Hack Attack % 3 | . . . . . . . . . 3 . . . . . . . . . . Hack Defense % 1 | . . . . . . . . . . . . . . 1 . . . . . Protomatter Created 5176 | . 99 54 303 249 380 . 745 . 454 74 413 . 47 747 502 108 235 414 352 Integrity Restored 13409 | . 414 396 774 1268 363 73 2174 . 1175 54 1194 . 135 2126 609 244 638 620 1152 Core 10543 | . 401 396 504 1060 204 . 2017 . 886 54 958 . 99 1599 314 169 521 405 956 Parts 2866 | . 13 . 270 208 159 73 157 . 289 . 236 . 36 527 295 75 117 215 196 Protomatter Decayed 1311 | . . 9 216 71 165 . . . 95 20 . . . 21 86 48 264 179 137 Game ------ Seed ExplosiveBlanketReplica Manual? 0 Play Time 04:19:03 Cumulative 155.8 hours Start 2025.12.30 @ 22:36:22 End 2026.01.02 @ 21:54:14 Sessions 27 Manual Loads 0 Difficulty Rogue Special Mode Winter2019/RPGLIKE Game No. 54 Rogue 52 Adventurer 2 Explorer 0 Win Type - Total 13 Types 2/1/2/1/1/1/1/1/2/1 Lore% 59 Gallery% 76 Achievement% 46 Wizard Run 0 Options --------- Layout 0 ASCII 0 Keyboard 0 Movement Mouse Keybinds 1 Fullscreen 2 Font 24/Smallcaps Map View 76x50 Zoom Use 0% Tactical HUD 1 Map Filters NONE Filters NONE Steam 1 RUN: 20baf4e6-2262-4495-95c6-75ec946faf7a